[Event "1st FIDE Olympiad DIS 2023"]
[Site "Belgrade"]
[Date "2023.02.01"]
[Round "3.22"]
[White "Pribeanu, Mihail-Dacian"]
[Black "Larduet Despaigne, Carlos"]
[Result "0-1"]
[ECO "A12"]
[WhiteElo "2134"]
[BlackElo "2277"]
[Annotator "TA"]
[PlyCount "82"]
[EventDate "2023.01.30"]
[EventType "team-tourn"]
[EventCountry "SRB"]
[SourceTitle "playchess.com"]
[Source "ChessBase"]
[SourceQuality "1"]
[WhiteTeam "Romania"]
[BlackTeam "Cuba"]
[WhiteTeamCountry "ROU"]
[BlackTeamCountry "CUB"]
[TimeControl "40/5400+30:1800+30"]

{[%evp 23,82,-14,-9,-32,-28,-25,-20,-71,-72,-65,-72,-111,-72,-200,-175,-216,-198,-230,-151,-136,-145,-143,-130,-130,-104,-162,-148,-267,-265,-247,-237,-318,-330,-308,-268,-223,-231,-341,-281,-357,-366,-379,-380,-550,-560,-553,-550,-538,-543,-654,-645,-766,-763,-754,-751,-737,-754,-681,-637,-778,-768]} 1. Nf3 {[%emt 1:52:55]} d5 {[%emt 0:00:34]} 2. g3 {[%emt 0:00:19]} Nf6 {[%emt 0:00:11]} 3. Bg2 {[%emt 0:00:16]} c6 {[%emt 0:00:44]} 4. O-O {[%emt 0:00:21]} Bf5 {[%emt 0:00:05]} 5. d3 {[%emt 0:02:06]} e6 {[%emt 0:00:14]} 6. Nbd2 {[%emt 0:00:46]} h6 {[%emt 0:00:08]} 7. c4 {[%emt 0:00:37]} Be7 {[%emt 0:05:25]} 8. b3 {[%emt 0:03:46]} O-O {[%emt 0:00:11]} 9. Bb2 {[%emt 0:00:21]} Nbd7 {[%emt 0:00:02]} 10. Rc1 {[%emt 0:00:43]} a5 {[%emt 0:00:17]} 11. a3 {[%emt 0:01:10]} Bh7 {[%emt 0:00:13]} 12. Qc2 {[%emt 0:00:39]} Bd6 {[%emt 0:00:12] 12...Re8 is vanishing.} 13. Qb1 {[%emt 0:00:32] A12: English Opening: 1...c6 with b3 by White.} Qe7 {[%emt 0:00:11]} 14. Qa1 {[%emt 0:00:18]} Rfe8 {[%emt 0:06:22]} 15. e4 {[%emt 0:19:40]} dxe4 $17 {[%emt 0:01:13] [#]} 16. dxe4 $146 {[%emt 0:13:52] [#] aiming for e5.} ({Predecessor:} 16. Nxe4 Nxe4 17. dxe4 e5 18. Nd2 Nc5 19. Rc3 Ne6 20. Rd3 f6 21. Bh3 Rad8 22. Bxe6+ Qxe6 {0-1 Lindinger,M-Hebbinghaus,H Hamburg-chA U18 1994}) 16... e5 {[%emt 0:00:29]} 17. Ne1 {[%emt 0:10:11]} Rad8 {[%emt 0:05:56]} 18. f3 {[%emt 0:19:39]} (18. Rd1 $17) 18... Bc5+ $19 {[%emt 0:05:29][%cal Bd6c5,Bc5e3,Be3d2][%mdl 32]} 19. Kh1 {[%emt 0:00:24] [#] White is weak on the dark squares} Be3 $1 {[%emt 0:00:22]} 20. Rc2 {[%emt 0:12:50]} Nc5 {[%emt 0:01:03]} 21. b4 {[%emt 0:05:31]} Bxd2 {[%emt 0:02:26]} 22. bxc5 {[%emt 0:00:20]} Qxc5 {[%emt 0:00:43]} 23. Bc3 {[%emt 0:01:00]} Be3 {[%emt 0:05:39] Black is much more active.} 24. Rb2 {[%emt 0:01:05]} (24. Qb2 $17) 24... b6 $36 {[%emt 0:06:38][%mdl 2048] White is under strong pressure.} 25. Nc2 {[%emt 0:02:14]} (25. Qa2 $17) 25... Bd2 {[%emt 0:00:26]} (25... Qxc4 26. Bxa5 Bc5 27. Bb4 $17) 26. Bxd2 Rxd2 27. Qc1 {[%emt 0:01:42]} Red8 {[%emt 0:03:23]} 28. Na1 {[%emt 0:01:16]} R2d3 {[%emt 0:03:27][%cal Bd2d3,Bd3c3,Bc3c4,Bc4b4,Bb4d4][%mdl 32]} ({Worse is} 28... Qe3 29. Nb3 Re2 30. Qxe3 Rxe3 31. Nc1 $17) 29. a4 {[%emt 0:00:23]} Bg6 {[%emt 0:01:24]} 30. Qc2 {[%emt 0:00:34]} (30. Rb1 $142) 30... Qe3 {[%emt 0:01:09] White must now prevent ...Rd2.} 31. Nb3 {[%emt 0:00:41]} Rc3 {[%emt 0:01:23]} 32. Qb1 {[%emt 0:00:12][%cal Oc4c5]} Rxc4 {[%emt 0:00:46]} 33. Rd1 {[%emt 0:01:52]} (33. Re1 $142 Qc3 34. Na1) 33... Rxd1+ {[%emt 0:01:01] Black is clearly winning.} 34. Qxd1 {[%emt 0:00:15]} Rb4 {[%emt 0:00:35]} 35. Rb1 {[%emt 0:00:11]} Kh7 {[%emt 0:00:24]} 36. g4 {[%emt 0:00:43]} c5 {[%emt 0:01:56][%cal Bc6c5,Bc5c4][%mdl 32]} 37. Nd2 {[%emt 0:00:19]} Rd4 {[%emt 0:00:09]} 38. Rb2 {[%emt 0:00:14]} c4 {[%emt 0:00:13]} 39. Qc2 {[%emt 0:00:59]} Nd5 {[%emt 0:06:14] Strongly threatening ...Nb4.} 40. Nf1 {[%emt 0:00:45]} Qf4 {[%emt 0:00:43] Hoping for ...Ne3.} 41. Qf2 {[%emt 0:01:25]} Nb4 {[%emt 0:00:51] Weighted Error Value: White=0.48/Black=0.09 (flawless)} 0-1

[Event "1st FIDE Olympiad DIS 2023"]
[Site "Belgrade"]
[Date "2023.02.01"]
[Round "3.23"]
[White "Interian Rodriguez, Alberto D."]
[Black "Morariu, Ionel"]
[Result "1/2-1/2"]
[ECO "B01"]
[WhiteElo "2082"]
[BlackElo "1915"]
[Annotator "TA"]
[PlyCount "67"]
[EventDate "2023.01.30"]
[EventType "team-tourn"]
[EventCountry "SRB"]
[SourceTitle "playchess.com"]
[Source "ChessBase"]
[SourceQuality "1"]
[WhiteTeam "Cuba"]
[BlackTeam "Romania"]
[WhiteTeamCountry "CUB"]
[BlackTeamCountry "ROU"]
[TimeControl "40/5400+30:1800+30"]

{[%evp 9,67,39,47,40,48,52,52,45,62,36,33,22,16,0,0,0,12,0,0,0,9,10,13,10,14,16,18,6,35,30,24,-5,-5,-5,-5,-5,-5,-6,-9,-7,-7,-7,-2,-22,-22,-41,-7,-29,-26,-27,0,-10,0,0,0,0,0,0,0,0]} 1. e4 {[%emt 0:00:02]} d5 {[%emt 0:00:15]} 2. exd5 {[%emt 0:00:05]} Qxd5 {[%emt 0:01:15]} 3. Nc3 {[%emt 0:00:31]} Qd6 {[%emt 0:00:20]} 4. d4 {[%emt 0:00:02]} Nf6 {[%emt 0:00:54]} 5. Bc4 c6 {[%emt 0:00:26]} 6. Nge2 {[%emt 0:00:46] B01: Scandinavian Defence.} Bf5 $1 {[%emt 0:00:54] 6...Bf5 scores better than 6...Bg4.} 7. Bf4 {[%emt 0:00:44]} Qb4 {[%emt 0:00:40]} 8. Bb3 {[%emt 0:00:09] White is slightly better.} e6 {[%emt 0:00:44]} 9. a3 {[%emt 0:01:17]} Qa5 {[%emt 0:00:31]} 10. O-O {[%emt 0:08:13]} Be7 {[%emt 0:00:20]} 11. Ng3 {[%emt 0:00:22][%cal Od4d5] Hoping for d5!} Bg6 $1 {[%emt 0:00:00]} 12. Re1 {[%emt 0:00:51]} O-O {[%emt 0:00:35]} 13. Qf3 {[%emt 0:01:49]} Re8 {[%emt 0:04:10] [#]} 14. Rad1 $146 {[%emt 0:04:57]} ({Predecessor:} 14. Nce4 Qb6 15. Rad1 Nbd7 16. Nd6 Red8 17. h4 h5 18. Nc4 Qa6 19. Bd6 Bxd6 20. Nxd6 {0-1 Cofman,V (2153)-Becker,D (2083) Oberliga Baden 1415 2014 (6.7)}) 14... Nbd7 {[%emt 0:00:47]} 15. Nce4 {[%emt 0:16:31]} Nxe4 {[%emt 0:07:46]} 16. Nxe4 {[%emt 0:02:25]} Nf6 {[%emt 0:00:15]} 17. Nxf6+ {[%emt 0:00:38]} Bxf6 {[%emt 0:00:21]} 18. Be5 {[%emt 0:00:18]} Be7 {[%emt 0:04:14]} 19. c4 {[%emt 0:03:01][%cal Bc2c4,Bc4d5][%mdl 32]} Rad8 {[%emt 0:05:08]} 20. d5 {[%emt 0:02:11]} exd5 {[%emt 0:01:03]} 21. cxd5 {[%emt 0:03:24] [#]} Bf6 $1 {[%emt 0:00:20]} 22. Bc3 {[%emt 0:04:05]} Bxc3 {[%emt 0:01:21]} 23. Rxe8+ {[%emt 0:00:23]} Rxe8 {[%emt 0:00:20]} 24. Qxc3 {[%emt 0:00:01]} Qxc3 {[%emt 0:00:42]} 25. bxc3 {[%emt 0:00:01]} cxd5 {[%emt 0:01:32]} 26. Bxd5 $11 {[%emt 0:00:31][%mdl 4096] Endgame KRB-KRB} b6 {[%emt 0:02:26]} 27. f3 {[%emt 0:01:30]} h6 {[%emt 0:00:29]} 28. Kf2 {[%emt 0:00:07]} Rc8 {[%emt 0:01:29]} 29. c4 {[%emt 0:00:30]} Bc2 {[%emt 0:01:03]} 30. Rc1 {[%emt 0:05:18] The position is equal.} Bb3 {[%emt 0:00:54]} 31. Rc3 {[%emt 0:01:15]} Ba2 {[%emt 0:00:40]} 32. Rc2 {[%emt 0:13:41]} Bb3 {[%emt 0:00:38]} 33. Rc3 {[%emt 0:00:42]} Ba2 {[%emt 0:00:12]} 34. Rc2 {[%emt 0:00:11] Weighted Error Value: White=0.07 (flawless) /Black=0.04 (flawless)} 1/2-1/2

[Event "1st FIDE Olympiad DIS 2023"]
[Site "Belgrade"]
[Date "2023.02.01"]
[Round "3.24"]
[White "Dima, Mihai"]
[Black "Batista Rivera, Idalis"]
[Result "1/2-1/2"]
[ECO "B28"]
[WhiteElo "1948"]
[BlackElo "1775"]
[Annotator "TA"]
[PlyCount "75"]
[EventDate "2023.01.30"]
[EventType "team-tourn"]
[EventCountry "SRB"]
[SourceTitle "playchess.com"]
[Source "ChessBase"]
[SourceQuality "1"]
[WhiteTeam "Romania"]
[BlackTeam "Cuba"]
[WhiteTeamCountry "ROU"]
[BlackTeamCountry "CUB"]
[TimeControl "40/5400+30:1800+30"]

{[%evp 9,75,47,53,4,10,4,43,25,59,21,29,10,21,-17,-15,-37,-36,-60,-50,-69,-65,-72,48,35,37,44,33,30,24,10,19,-118,-104,-110,-121,-139,-64,-51,-55,-53,-78,-73,-27,-33,0,0,0,-90,-83,-246,-242,-252,-77,-70,-82,-232,0,0,0,0,0,0,0,0,0,-12,-14,-83]} 1. e4 {[%emt 0:00:24]} c5 {[%emt 0:00:17]} 2. Nf3 {[%emt 0:00:12]} a6 {[%emt 0:02:25]} 3. b3 {[%emt 0:00:45]} d5 {[%emt 0:00:37]} 4. exd5 {[%emt 0:01:45]} Qxd5 {[%emt 0:00:23]} 5. Be2 {[%emt 0:05:01]} Nf6 {[%emt 0:09:51]} 6. c4 {[%emt 0:00:44] B28: Sicilian: 2 Nf3 a6 (O'Kelly Variation).} (6. Na3 $14 {is more appropriate.}) 6... Qd8 {[%emt 0:01:04][%cal Oe7e5]} 7. Bb2 {[%emt 0:01:25] [#]} g6 $146 {[%emt 0:01:03]} ({Predecessor:} 7... Nc6 8. d4 e6 9. O-O cxd4 10. Nxd4 Nxd4 11. Qxd4 Qc7 12. Nc3 Bd7 13. Bf3 Bc6 {1-0 Prie,E (2405)-Gocheva,R (2210) Orange op 1990 (5)}) 8. d4 {[%emt 0:06:08] White is slightly better.} cxd4 {[%emt 0:04:50]} 9. Nxd4 {[%emt 0:00:42]} Bg7 {[%emt 0:02:23]} 10. O-O {[%emt 0:00:59]} O-O {[%emt 0:00:59]} 11. Na3 {[%emt 0:01:02][%cal Bb1a3,Ba3c2,Bc2e3,Be3d5][%mdl 32]} Qc7 {[%emt 0:01:40]} 12. h3 {[%emt 0:08:42]} e5 {[%emt 0:05:00]} 13. Nf3 {[%emt 0:01:29]} Nc6 {[%emt 0:00:46]} 14. Nc2 {[%emt 0:00:45]} Nh5 {[%emt 0:05:00] ...Rd8 would be deadly.} 15. Ne3 {[%emt 0:08:09]} e4 {[%emt 0:03:33]} (15... Be6 $1 $17) 16. Nd5 $1 $14 {[%emt 0:02:21]} Qd8 {[%emt 0:05:35]} 17. Nd4 {[%emt 0:06:54]} Qg5 {[%emt 0:03:08] [#]} 18. h4 {[%emt 0:07:03]} Qxh4 {[%emt 0:09:53]} 19. Bxh5 {[%emt 0:01:58]} gxh5 {[%emt 0:04:15]} 20. Nxc6 {[%emt 0:02:57] A dynamic duo of knights.} (20. Qd2 $11) 20... Bxb2 $17 {[%emt 0:00:54]} 21. Nce7+ {[%emt 0:00:33]} Kh8 {[%emt 0:00:49] Hoping for ...Be5.} 22. Qe2 {[%emt 0:10:54]} Be5 $40 {[%emt 0:11:35][%mdl 128] Black is up to no good.} (22... Bxa1 $17 23. Rxa1 Bd7) 23. g3 $15 {[%emt 0:00:57]} Qg5 {[%emt 0:01:23] ...f5 is the strong threat.} 24. Qxe4 {[%emt 0:04:42]} Bxa1 {[%emt 0:02:39]} 25. Rxa1 {[%emt 0:00:51]} Be6 {[%emt 0:00:18]} (25... Bg4 $17) 26. Re1 $11 {[%emt 0:10:37]} Rad8 {[%emt 0:01:51]} (26... Bg4 {with more complications.} 27. Kg2 Rad8 28. Nf4 Rfe8) 27. Qd4+ {[%emt 0:01:10]} Qg7 {[%emt 0:00:44]} 28. Qh4 {[%emt 0:00:15]} (28. Qf4 $1 $11 {remains equal.}) 28... Bg4 $1 $17 {[%emt 0:03:44]} 29. Re3 $2 {[%emt 0:03:54]} (29. Nf6 $17) 29... Rd6 $1 $19 {[%emt 0:01:43]} 30. f3 {[%emt 0:03:53] [#]} Be6 {[%emt 0:02:23]} ({Inferior is} 30... Qa1+ 31. Kf2 Be6 32. Qf4 $17) (30... Bd7 $1 $19 {Strongly threatening ...Re6.} 31. Nc3 Rd2) 31. Qf4 $17 {[%emt 0:00:36]} Rfd8 {[%emt 0:01:19]} (31... Qa1+ {seems wilder.} 32. Kf2 Rfd8 33. a4 b5) 32. Re5 {[%emt 0:03:05] [#]} (32. Kf2 $17 {keeps fighting.}) 32... Bxd5 $2 {[%emt 0:03:33]} ({Black should play} 32... Bd7 $1 $19 {White must now prevent ...Re6.} 33. Qg5 Qxg5 34. Rxg5 Re6) 33. Nf5 $1 $11 {[%emt 0:02:20] The position is equal.} Rf6 {[%emt 0:02:58][%cal Of6f5] And now ...Rxf5! would win.} 34. Rxd5 {[%emt 0:01:38]} Rxd5 {[%emt 0:05:09]} 35. cxd5 {[%emt 0:00:08]} Rxf5 {[%emt 0:00:16][%mdl 64] Deflection} 36. Qxf5 {[%emt 0:00:07][%cal Og1h2] Threatens to win with Kh2!} Qxg3+ {[%emt 0:00:29]} 37. Kh1 {[%emt 0:00:17]} (37. Kf1 $5 {[%cal Rf5f7]}) 37... Kg7 {[%emt 0:00:50]} 38. Qxh5 {[%emt 0:00:28] An exciting game.   Weighted Error Value: White=0.28 (precise) /Black=0.30} (38. Qe4 $11 {keeps the balance.}) 1/2-1/2

[Event "1st FIDE Olympiad DIS 2023"]
[Site "Belgrade"]
[Date "2023.02.01"]
[Round "3.25"]
[White "Pavicevic, Jovan R"]
[Black "Nikac, Predrag"]
[Result "1/2-1/2"]
[ECO "B01"]
[WhiteElo "2214"]
[BlackElo "2285"]
[Annotator "TA"]
[PlyCount "111"]
[EventDate "2023.01.30"]
[EventType "team-tourn"]
[EventCountry "SRB"]
[SourceTitle "playchess.com"]
[Source "ChessBase"]
[SourceQuality "1"]
[WhiteTeam "Serbia"]
[BlackTeam "Montenegro"]
[WhiteTeamCountry "SRB"]
[BlackTeamCountry "MNE"]
[TimeControl "40/5400+30:1800+30"]

{[%evp 16,111,68,53,60,55,63,62,40,29,43,52,54,51,45,0,24,17,21,17,20,0,0,0,6,0,11,-62,-15,-48,0,-97,-18,-19,23,17,17,14,24,28,64,66,65,75,67,32,131,125,313,0,128,64,62,56,54,62,63,53,53,50,53,53,53,53,53,53,53,-87,-87,-87,-87,-120,-86,-120,-120,-135,-87,-120,-63,-113,-63,-156,-86,-156,-63,-156,-86,-153,-63,-63,-28,-30,-34,-296,-296,-266,0,0]} 1. e4 {[%emt 0:00:30]} d5 {[%emt 0:00:05]} 2. exd5 {[%emt 0:00:20]} Qxd5 {[%emt 0:00:07]} 3. Nc3 {[%emt 0:00:20]} Qa5 {[%emt 0:00:11]} 4. Bc4 {[%emt 0:00:39]} Nf6 {[%emt 0:00:22]} 5. d4 {[%emt 0:01:07]} c6 {[%emt 0:02:19]} 6. Nf3 {[%emt 0:01:17]} Bg4 {[%emt 0:01:10]} 7. Bd2 {[%emt 0:00:36]} e6 {[%emt 0:03:06]} 8. h3 {[%emt 0:02:39]} Bh5 {[%emt 0:02:07]} 9. Qe2 {[%emt 0:04:50]} Nbd7 {[%emt 0:09:11] B01: Scandinavian Defence.} 10. O-O-O {[%emt 0:10:38]} Bb4 {[%emt 0:15:28]} 11. g4 {[%emt 0:08:38]} Bg6 {[%emt 0:00:14] White is slightly better.} 12. Kb1 {[%emt 0:01:03]} (12. a3 $5 {[%cal Ra3b4]} Bxc3 13. Bxc3 $11) 12... O-O-O {[%emt 0:01:14]} 13. a3 {[%emt 0:02:11]} Bxc3 {[%emt 0:03:11]} (13... Bxa3 $2 14. Nd5 (14. bxa3 Qxa3 15. Bd3 Nb6 $16) 14... Qa4 15. b3 $18) 14. Bxc3 {[%emt 0:00:13]} Qc7 {[%emt 0:00:18]} 15. Ne5 {[%emt 0:08:12] [#]} Nd5 $146 {[%emt 0:09:22]} ({Predecessor:} 15... Nxe5 16. dxe5 Nd5 17. Bxd5 Rxd5 18. f4 Rhd8 19. Rdf1 Qd7 20. Rhg1 f6 21. exf6 gxf6 {1-0 Sypien,M (2272)-Dzierzak,R (1906) Polanica Zdroj op-B 48th 2012 (6)}) 16. Bxd5 {[%emt 0:02:25]} exd5 {[%emt 0:00:17]} 17. Nxg6 {[%emt 0:05:42]} hxg6 {[%emt 0:01:55]} 18. Qf3 {[%emt 0:00:35]} Nf6 {[%emt 0:00:29]} 19. Bd2 {[%emt 0:01:41]} Ne4 {[%emt 0:05:24]} 20. Bf4 {[%emt 0:00:32]} Qd7 {[%emt 0:02:11] [#]} 21. c4 {[%emt 0:07:22]} Rde8 {[%emt 0:03:09]} (21... g5 $15 22. Bh2 f5) 22. c5 {[%emt 0:00:43]} Re6 {[%emt 0:01:58]} (22... g5 $15 {is more appropriate.} 23. Be3 f6) 23. g5 {[%emt 0:01:35]} (23. Qg2 $11) 23... f6 {[%emt 0:06:00]} (23... Ree8 $1 $17 {Strongly threatening ...Qf5.} 24. Be3 Rh4) 24. Qg2 $11 {[%emt 0:05:10]} Rf8 {[%emt 0:04:26][%cal Oe4f2]} 25. f3 $36 {[%emt 0:07:59][%mdl 2048] White has the initiative.} Nxg5 {[%emt 0:00:16]} 26. h4 {[%emt 0:00:50]} Nf7 {[%emt 0:03:16][%cal Og6g5]} 27. Qxg6 {[%emt 0:00:35] Black is weak on the dark squares} Nd8 {[%emt 0:01:11]} 28. Bh2 {[%emt 0:02:17] Threatens to win with Qg3. White has more active pieces. The black rooks are badly placed.} f5 {[%emt 0:08:09]} (28... Re2 $2 29. Qg3 Rxh2 30. Rxh2 $18) 29. Qg5 {[%emt 0:03:11]} ({Of course not} 29. Qg3 f4 30. Qg2 Qf7 $15) 29... f4 {[%emt 0:00:28]} 30. Bxf4 {[%emt 0:03:55]} Ref6 {[%emt 0:04:36]} (30... Ree8 $1 $14 31. Bh2 Rxf3) 31. Bd6 $16 {[%emt 0:02:31]} Nf7 $2 {[%emt 0:02:18]} (31... R8f7 $16) 32. Qxg7 $2 {[%emt 0:05:27]} (32. Qxf6 $18 gxf6 33. Bxf8) 32... Qf5+ {[%emt 0:03:13]} (32... Rxf3 $2 33. Qxf8+ Qd8 34. Qg7 $18) (32... Nxd6 $11 {keeps the balance.} 33. Qxd7+ Kxd7 34. cxd6 Rxf3) 33. Ka1 {[%emt 0:00:28]} (33. Ka2 $16 Nxd6 34. cxd6 Rxd6 35. h5) 33... Nxd6 $14 {[%emt 0:00:14]} 34. cxd6 {[%emt 0:00:24]} Rxd6 {[%emt 0:00:14]} 35. h5 {[%emt 0:03:05]} Rd7 {[%emt 0:03:06]} 36. Qg6 {[%emt 0:00:43]} Qxg6 {[%emt 0:01:11]} 37. hxg6 {[%emt 0:00:12]} Rxf3 {[%emt 0:00:12][%mdl 4096] Endgame KRR-KRR} 38. Rdg1 {[%emt 0:00:44] Inhibits Rg3. Black must now prevent g7.} Rf8 $1 {[%emt 0:04:15]} (38... Rg7 $2 39. Rh7 Rg8 40. Re7 $18) 39. g7 {[%emt 0:05:30]} Rg8 {[%emt 0:00:11]} 40. Rh8 {[%emt 0:00:40]} Rdd8 {[%emt 0:00:20]} 41. Kb1 {[%emt 0:31:59]} (41. Rh3 $14 {stays ahead.}) 41... Rxh8 $17 42. gxh8=Q {[%emt 0:01:35]} Rxh8 {[%emt 0:31:34] KR-KR} 43. Kc2 {[%emt 0:00:00]} Rh7 {[%emt 0:02:04]} 44. Kc3 {[%emt 0:00:00]} Kc7 {[%emt 0:00:17]} 45. Rg3 {[%emt 0:00:30]} Re7 {[%emt 0:00:20]} (45... Kb6 $142 46. Rg8 Ka5) 46. Kd3 {[%emt 0:01:20]} b6 {[%emt 0:01:10]} (46... Kb6 $17 47. b3 Kb5) 47. Rg5 {[%emt 0:00:00]} (47. a4 $1 $15) 47... Rd7 {[%emt 0:00:00]} (47... b5 $1 $17 48. Rg8 Rh7) 48. b3 {[%emt 0:03:31]} (48. a4 $15) 48... a5 {[%emt 0:00:00]} (48... b5 $142 $1 49. Kc3 a5) 49. Rg6 {[%emt 0:00:00]} ({Better is} 49. a4) 49... Rh7 {[%emt 0:00:00]} (49... b5 $1 $17 {aiming for ...Rh7.} 50. a4 b4) 50. Rg3 {[%emt 0:00:00] [#]} (50. a4 $1 $15) 50... Re7 {[%emt 0:00:00]} ({Black should try} 50... b5 $1 {Hoping for ...Rh2.} 51. a4 b4) 51. Rh3 {[%emt 0:00:00] [#]} (51. a4 $142) 51... Kd6 {[%emt 0:00:00]} (51... b5 $1 $17 52. a4 bxa4 53. bxa4 Re1 54. Rh7+ Kb6) 52. Rh8 $15 {[%emt 0:00:00]} c5 {[%emt 0:00:00]} 53. Rd8+ {[%emt 0:00:00]} Kc6 {[%emt 0:00:00][%cal Oa5a4]} 54. a4 $2 {[%emt 0:01:36][%mdl 8192]} (54. Rc8+ $15 Rc7 55. Rh8) 54... Re4 $19 {[%emt 0:00:00]} 55. dxc5 {[%emt 0:00:00]} bxc5 {[%emt 0:00:00]} (55... Kxc5 $19 {And now ...Rf4 would win.} 56. Kc2 Re2+ 57. Kd3 Rh2 58. Rc8+ Kb4) 56. Rc8+ {[%emt 0:00:00] What a bad dream for Black.   Weighted Error Value: White=0.42/Black=0.39} 1/2-1/2

[Event "1st FIDE Olympiad DIS 2023"]
[Site "Belgrade"]
[Date "2023.02.01"]
[Round "3.26"]
[White "Ivanovic, Milan"]
[Black "Tonic, Milos"]
[Result "1/2-1/2"]
[ECO "B19"]
[WhiteElo "1908"]
[BlackElo "2018"]
[Annotator "TA"]
[PlyCount "110"]
[EventDate "2023.01.30"]
[EventType "team-tourn"]
[EventCountry "SRB"]
[SourceTitle "playchess.com"]
[Source "ChessBase"]
[SourceQuality "1"]
[WhiteTeam "Montenegro"]
[BlackTeam "Serbia"]
[WhiteTeamCountry "MNE"]
[BlackTeamCountry "SRB"]
[TimeControl "40/5400+30:1800+30"]

{[%evp 17,110,7,9,-7,-6,-12,-8,0,-1,-15,0,-22,0,0,0,-10,0,0,0,0,0,0,14,-10,-12,-11,-11,-20,-17,-24,0,0,0,-28,0,0,0,0,0,0,0,0,0,0,0,0,0,0,0,0,0,0,0,-10,0,0,0,0,0,-18,-18,-62,-54,-54,-54,-59,-49,-42,-28,-335,-8,-8,-10,-5,63,0,0,0,0,0,0,0,0,0,0,0,0,0,0,0,0,0,0,0,0]} 1. e4 {[%emt 0:00:10]} c6 {[%emt 0:00:39]} 2. d4 {[%emt 0:00:09]} d5 {[%emt 0:00:37]} 3. Nd2 {[%emt 0:00:45][%cal Bb1d2,Bd2e4,Be4g3][%mdl 32]} dxe4 {[%emt 0:01:00]} 4. Nxe4 {[%emt 0:00:44]} Bf5 {[%emt 0:01:16]} 5. Ng3 {[%emt 0:01:03]} Bg6 {[%emt 0:00:35]} 6. Nf3 {[%emt 0:00:58]} Nd7 {[%emt 0:00:26]} 7. h4 {[%emt 0:14:09]} h6 {[%emt 0:00:20]} 8. Bd3 {[%emt 0:00:30]} Bxd3 {[%emt 0:00:37]} 9. Qxd3 {[%emt 0:00:26]} Ngf6 {[%emt 0:02:05]} 10. Qb3 {[%emt 0:05:02] B19: Classical Caro-Kann: 4...Bf5 main line.} Qc7 {[%emt 0:03:33]} 11. O-O {[%emt 0:00:34][%cal Of3e5]} e6 {[%emt 0:01:54]} 12. Re1 {[%emt 0:05:01] [#]} Be7 $146 {[%emt 0:01:35]} ({Predecessor:} 12... Bd6 13. Nf5 O-O-O 14. Nxd6+ Qxd6 15. Qa4 Kb8 16. c4 Ka8 17. b4 Qc7 18. g3 Nf8 19. Bf4 Qe7 {0-1 Topic,J (1843)-Marttinen,J Vojvodina U16 2005 (8)}) 13. Ne5 {[%emt 0:03:39]} O-O {[%emt 0:01:28]} 14. c4 {[%emt 0:07:13]} (14. Ng6 $5) 14... b5 {[%emt 0:29:39]} 15. cxb5 {[%emt 0:02:11]} cxb5 {[%emt 0:03:56]} 16. Qxb5 {[%emt 0:05:21][%cal Og3f5]} Rab8 {[%emt 0:04:21]} 17. Qe2 {[%emt 0:02:41]} Nd5 {[%emt 0:06:10] Wards off Bf4} 18. Nh5 {[%emt 0:10:30]} Nxe5 {[%emt 0:03:49]} ({Don't take} 18... Bxh4 19. Qg4 Bg5 20. Bxg5 Nxe5 21. dxe5 $16 (21. Rxe5 hxg5 22. Rae1 g6 $16)) 19. dxe5 {[%emt 0:00:33][%cal Oc1h6] Strongly threatening Bxh6!} Rb4 {[%emt 0:20:01]} ({But not} 19... Bxh4 20. Qg4 Bg5 21. Bxg5 hxg5 22. Qxg5 $16) 20. b3 {[%emt 0:05:22]} Rxh4 {[%emt 0:04:28] ...Bb4 is the strong threat.} 21. g3 {[%emt 0:01:12]} Rd4 {[%emt 0:03:52]} 22. Bb2 {[%emt 0:02:07]} Rb4 {[%emt 0:00:29]} 23. Ba3 {[%emt 0:03:49]} Rd4 {[%emt 0:01:07]} (23... Rb7 {is more complex.} 24. Qg4 g6 25. Rac1 Qd8) 24. Bb2 {[%emt 0:02:00]} Rb4 {[%emt 0:01:30]} 25. Ba3 $1 {[%emt 0:00:36]} Rb6 {[%emt 0:04:02]} (25... Rb7 $5 {[%cal Re7a3]} 26. Rac1 Qa5 $11) 26. Rac1 {[%emt 0:04:01]} Rc6 {[%emt 0:00:28]} 27. Rxc6 {[%emt 0:02:35]} Qxc6 {[%emt 0:00:14]} 28. Qg4 {[%emt 0:06:30][%csl Gh5][%cal Rg4g7]} g6 {[%emt 0:00:40]} 29. Bxe7 {[%emt 0:01:22]} Nxe7 {[%emt 0:00:03]} 30. Nf6+ {[%emt 0:00:51]} Kg7 {[%emt 0:01:26]} 31. Qd4 {[%emt 0:00:44]} a6 {[%emt 0:01:35]} 32. Qd2 {[%emt 0:01:01]} Nf5 {[%emt 0:00:25]} 33. Rc1 {[%emt 0:00:45]} Qb5 {[%emt 0:01:08]} 34. Qc3 {[%emt 0:00:54]} Rd8 {[%emt 0:00:48]} 35. a4 {[%emt 0:00:55]} Qe2 {[%emt 0:00:23]} 36. Re1 {[%emt 0:00:54]} Qd2 {[%emt 0:00:30]} 37. Qxd2 {[%emt 0:04:21]} Rxd2 $11 {[%emt 0:00:04][%mdl 4096] Endgame KRN-KRN} 38. Re4 {[%emt 0:01:50]} Nd4 {[%emt 0:00:45]} 39. b4 {[%emt 0:00:22]} Nf3+ $1 {[%emt 0:00:38]} 40. Kg2 {[%emt 0:00:19] [#]} Nxe5 {[%emt 0:00:12][%mdl 64] Remove Defender} 41. Ne8+ {[%emt 0:30:50]} (41. Nh5+ gxh5) 41... Kf8 {[%emt 0:30:06]} 42. Nc7 {[%emt 0:00:38]} Nd3 {[%emt 0:01:10]} 43. Nxa6 $2 {[%emt 0:02:33][%mdl 8192]} (43. Kf3 $11) 43... Rxf2+ $2 {[%emt 0:00:00]} ({Better is} 43... Nxf2 $19 44. Rh4 Ng4+ 45. Kg1 h5) 44. Kg1 $1 {[%emt 0:00:00]} Ra2 {[%emt 0:00:00] ...Ra1+ would be deadly.} 45. b5 {[%emt 0:00:00] And now b6 would win.} Ke7 {[%emt 0:00:00]} (45... Rb2 $11) 46. Rd4 {[%emt 0:00:00]} (46. b6 $1 $14 Rb2 47. a5) 46... Ne5 {[%emt 0:00:00] White must now prevent ...Nf3+. The position is equal.} 47. Rb4 {[%emt 0:00:00]} Nd7 {[%emt 0:00:00]} 48. b6 {[%emt 0:00:00]} Nxb6 {[%emt 0:00:00][%mdl 64] [#] Deflection} 49. Rxb6 {[%emt 0:00:00]} Rxa4 {[%emt 0:00:00] KRN-KR} 50. Kg2 {[%emt 0:00:00]} h5 {[%emt 0:00:00]} 51. Nc5 {[%emt 0:00:00]} Ra7 {[%emt 0:00:00]} 52. Kf3 {[%emt 0:00:00]} Kf6 {[%emt 0:00:00]} 53. Ne4+ {[%emt 0:00:00]} Kg7 {[%emt 0:00:00]} 54. Kf4 {[%emt 0:00:00]} Ra4 {[%emt 0:00:00]} 55. Kf3 {[%emt 0:00:00]} Ra7 {[%emt 0:02:19] Weighted Error Value: White=0.15 (very precise) /Black=0.17 (very precise)} 1/2-1/2